fUSD/lending_fUSD_20250404
["ID","MTS","AMOUNT","RATE_DAILY","PERIOD"]
[357095685,1743730238575,-1300.0,0.000198,7]
[357095686,1743730238584,-40102.07048068,0.0001981,2]
[357095687,1743730238593,-2500.0,0.00019899,2]
[357095688,1743730238602,-575.7083,0.000199,2]
[357095689,1743730238611,-248.4524,0.000199,2]
[357095690,1743730238620,-2224.973,0.000199,2]
[357095691,1743730238630,-6268.6552,0.000199,2]
[357095692,1743730238639,-2280.8793,0.000199,2]
[357095693,1743730238649,-421.687,0.000199,2]
[357095694,1743730238659,-7289.1719,0.000199,2]
[357095695,1743730238668,-159.6923012,0.000199,2]
[357095696,1743730238679,-1700.0,0.000199,7]
[357095697,1743730238688,-199.06124426,0.000199,2]
[357095698,1743730238698,-162.13626602,0.000199,2]
[357095699,1743730238708,-651.87727525,0.000199,2]
[357095700,1743730238718,-244.74184222,0.000199,2]
[357095701,1743730238727,-198.66537042,0.000199,2]
[357095702,1743730238737,-1077.34846978,0.000199,2]
[357095703,1743730238746,-2500.0,0.000199,2]
[357095704,1743730238756,-614.652,0.0001995,2]
[357095705,1743730238766,-501.37009461,0.00019973,2]
[357095706,1743730238775,-500.0,0.00019973,2]
[357095707,1743730238785,-5772.6619241,0.00019996,2]
[357095708,1743730238794,-2632.2816698,0.00019996,2]
[357095709,1743730238803,-16626.63266208,0.00019999,2]
[357095714,1743730240464,-150.57,0.00019366,2]
[357095715,1743730240475,-479.23,0.00019999,2]
[357095716,1743730240602,-13791.23209452,0.00019999,2]
[357095717,1743730240615,-2149.52758628,0.00019999,2]
[357095718,1743730240670,-1637.5271975,0.00019999,2]
[357095719,1743730240682,-8315.362304,0.00019999,2]
[357095720,1743730240793,-597.29046891,0.00019999,2]
[357095721,1743730240805,-1513.86175274,0.00019999,2]
[357095731,1743730244455,-1318.2,0.00019999,2]
[357095732,1743730244478,-4159.15,0.00019999,2]
[357095735,1743730246459,-2042.0,0.00019692,2]
[357095736,1743730246469,-530.32582955,0.00019999,2]
[357095737,1743730246480,-383.87296915,0.00019999,2]
[357095738,1743730246699,-10102.86571953,0.00019999,2]
[357095739,1743730246713,-53126.40046034,0.00019999,2]
[357095740,1743730246722,-601.01834332,0.00019999,2]
[357095741,1743730246733,-345720.89800374,0.0002,2]
[357095742,1743730246796,-295.25514135,0.0002,2]
[357095744,1743730246807,-494.61771879,0.0002,2]
[357095756,1743730442595,290.5597944,0.00035114,60]
[357095757,1743730673932,159.07,0.0002916,120]
[357095758,1743730983368,162.68,0.00013699,2]
[357095759,1743731004850,5799.0,0.00035116,30]
[357095760,1743731106935,-151.28,0.00017345,2]
[357095762,1743731431451,-1273.58,0.00017345,2]
[357095763,1743731431462,-188.05694236,0.00018749,2]
[357095764,1743731431471,-210.09334128,0.00018834,2]
[357095765,1743731431481,-274.00446989,0.00018919,2]
[357095766,1743731431492,-101.09680102,0.0001892,2]
[357095767,1743731431591,-23798.90319898,0.0001892,2]
[357095768,1743731431601,-157.39,0.00018934,2]
[357095769,1743731431610,-250.0,0.00019079,2]
[357095770,1743731431619,-250.0,0.00019079,2]
[357095771,1743731431629,-250.0,0.00019079,2]
[357095772,1743731431638,-313.03,0.00019121,2]
[357095773,1743731431647,-1000.0,0.00019231,2]
[357095774,1743731431657,-150.0,0.00019276,7]
[357095775,1743731431667,-300.0,0.00019302,2]
[357095776,1743731431677,-195.5458988,0.00019399,2]
[357095777,1743731431686,-159.07,0.0001944,2]
[357095778,1743731431698,-250.0,0.00019453,2]
[357095779,1743731431708,-150.0,0.00019479,2]
[357095780,1743731431717,-168.29,0.00019514,2]
[357095781,1743731431726,-1424.86,0.00019609,2]
[357095783,1743731431737,-2042.0,0.00019692,2]
[357095785,1743731431746,-1284.0,0.00019692,2]
[357095787,1743731431756,-1374.296,0.00019692,2]
[357095788,1743731431766,-790.0,0.00019692,2]
[357095789,1743731431775,-1276.0,0.00019692,2]
[357095790,1743731431786,-1434.0,0.00019692,2]
[357095791,1743731431795,-2715.602,0.00019692,2]
[357095792,1743731431805,-909.0,0.00019692,2]
[357095793,1743731431815,-336.534,0.00019692,2]
[357095794,1743731431825,-851.0,0.00019692,2]
[357095795,1743731431834,-151.0,0.00019692,2]
[357095796,1743731431844,-3953.0,0.00019692,2]
[357095797,1743731431854,-347.0,0.00019863,2]
[357095798,1743731431863,-288.77197565,0.00019881,2]
[357095799,1743731431873,-184.18,0.00019888,2]
[357095800,1743731431883,-6472.9668,0.000199,2]
[357095801,1743731431892,-412.1571,0.000199,2]
[357095802,1743731431902,-175.707,0.000199,2]
[357095803,1743731431912,-744.0209,0.000199,2]
[357095804,1743731431921,-3558.9786,0.000199,2]
[357095805,1743731431931,-22300.418,0.000199,2]
[357095807,1743731431940,-608.9348,0.000199,2]
[357095808,1743731431949,-503.818,0.000199,2]
[357095810,1743731431959,-5393.6685,0.000199,2]
[357095812,1743731431969,-292.57910675,0.000199,2]
[357095814,1743731431978,-160.51571952,0.000199,2]
[357095817,1743731431991,-165.89434798,0.000199,2]
[357095819,1743731432005,-219.99984382,0.000199,2]
[357095820,1743731432014,-172.64945765,0.000199,2]
[357095822,1743731432023,-505.66859747,0.00019973,2]
[357095825,1743731432032,-500.0,0.00019973,2]
[357095827,1743731432042,-502.71365956,0.00019973,2]
[357095829,1743731432051,-305.04213446,0.00019973,2]
[357095831,1743731432061,-501.31249804,0.00019973,2]
[357095833,1743731432070,-301.09591002,0.00019973,2]
[357095834,1743731432086,-152.32260411,0.00019973,2]
[357095836,1743731432095,-505.12602715,0.00019973,2]
[357095838,1743731432105,-4798.1515494,0.00019996,2]
[357095840,1743731432115,-2173.8670449,0.00019996,2]
[357095842,1743731432124,-188.53310035,0.00019998,2]
[357095844,1743731432133,-207.30902773,0.00019998,2]
[357095846,1743731432143,-1001.9316,0.00019999,2]
[357095848,1743731432153,-325.0,0.00019999,2]
[357095851,1743731432162,-3071.89186802,0.0002,2]
[357095853,1743731432175,-439795.90821436,0.0002,2]
[357095855,1743731432185,-712.24024169,0.0002,2]
[357095857,1743731432198,-361.56297009,0.0002,2]
[357095858,1743731432210,-585.49977958,0.0002,2]
[357095859,1743731432221,-384.54,0.0002,2]
[357095860,1743731432273,-2555.42650149,0.0002,2]
[357095862,1743731437437,-150.0,0.00019692,2]
[357095863,1743731437447,-410.92,0.0002,2]
[357095882,1743731439842,-421.6,0.0002,2]
[357095905,1743731688106,411.0,0.00025,14]
[357095908,1743731951913,3146.29159878,0.00035113,30]
[357095909,1743732057004,308.0,0.00035113,30]
[357095910,1743732128167,-150.0,0.00017337,2]
[357095911,1743732129422,163.02,0.00013699,2]
[357095912,1743732169834,2987.0,0.00035113,30]
[357095913,1743732477890,-192.26,0.00015325,2]
[357095914,1743732477916,-38.743,0.00017337,2]
[357095923,1743732631647,-1093.627,0.00017337,2]
[357095924,1743732631658,-282.0,0.00018301,2]
[357095925,1743732631667,-156.51,0.00019109,2]
[357095926,1743732631677,-150.57,0.00019157,2]
[357095927,1743732631687,-12136.87716694,0.00019265,2]
[357095928,1743732631699,-1842.89110685,0.00019265,2]
[357095929,1743732631802,-9920.23172621,0.00019265,2]
[357095930,1743732631812,-1000.0,0.00019293,2]
[357095931,1743732631821,-195.5458988,0.00019399,2]
[357095932,1743732631831,-150.0,0.00019417,7]
[357095933,1743732631841,-3953.0,0.00019426,2]
[357095934,1743732631851,-851.0,0.00019426,2]
[357095935,1743732631860,-151.0,0.00019426,2]
[357095936,1743732631869,-250.0,0.00019459,2]
[357095937,1743732631879,-1100.0,0.000195,7]
[357095938,1743732631888,-2200.0,0.000196,7]
[357095939,1743732631898,-1282.37,0.00019601,2]
[357095940,1743732631907,-150.0,0.00019692,2]
[357095941,1743732631917,-150.15,0.00019692,2]
[357095942,1743732631927,-150.187,0.00019692,2]
[357095943,1743732631936,-2042.0,0.00019692,2]
[357095944,1743732631946,-1284.0,0.00019692,2]
[357095945,1743732631955,-790.0,0.00019692,2]
[357095946,1743732631965,-1273.8,0.00019692,2]
[357095947,1743732631974,-1083.412,0.00019692,2]
[357095948,1743732631984,-905.891,0.00019692,2]
[357095949,1743732631993,-3300.0,0.000197,7]
[357095950,1743732632003,-4400.0,0.000198,7]
[357095951,1743732632012,-233.34205614,0.000199,2]
[357095953,1743732632024,-831.0453,0.000199,2]
[357095955,1743732632033,-165.89434793,0.000199,2]
[357095957,1743732632043,-160.51571951,0.000199,2]
[357095959,1743732632052,-5500.0,0.000199,7]
[357095961,1743732632062,-1060.8361,0.000199,2]
[357095963,1743732632072,-485.63712504,0.000199,2]
[357095965,1743732632083,-5055.6269221,0.000199,2]
[357095967,1743732632092,-1403.0524,0.000199,2]
[357095969,1743732632101,-342.4135,0.000199,2]
[357095971,1743732632111,-546.51826429,0.000199,2]
[357095973,1743732632121,-188.0,0.00019973,2]
[357095975,1743732632130,-500.0,0.00019973,2]
[357095977,1743732632140,-500.0,0.00019973,2]
[357095979,1743732632149,-1811.5558707,0.00019996,2]
[357095981,1743732632159,-7836.9808641,0.00019996,2]
[357095983,1743732632171,-1082.187167,0.00019999,5]
[357095985,1743732632180,-708.0,0.0002,2]
[357095987,1743732632189,-243255.80624772,0.0002,2]
[357095989,1743732632201,-28370.87138664,0.0002,2]
[357095991,1743732632212,-558.8778189,0.0002,2]
[357095994,1743732632227,-1925.09129062,0.0002,2]
[357095996,1743732632238,-300.0,0.0002,2]
[357096082,1743732634733,-151.43559359,0.00019165,2]
[357096091,1743732639662,-46.21539994,0.00019165,2]
[357096092,1743732639671,-219.99984382,0.000199,2]
[357096093,1743732639681,-177.169,0.000199,2]
[357096094,1743732639691,-4.74184177,0.0002,2]
[357096095,1743732639770,-537.0,0.0002,2]
[357096096,1743732639779,-791.34595672,0.0002,2]
[357096097,1743732640030,-917.89264726,0.0002,2]
[357096098,1743732640088,-12466.0839861,0.0002,2]
[357096116,1743732643565,-500.0,0.00019264,2]
[357096117,1743732643575,-500.0,0.00019264,2]
[357096118,1743732643585,-500.0,0.00019264,2]
[357096119,1743732643596,-500.0,0.00019264,2]
[357096120,1743732643606,-500.0,0.00019264,2]
[357096121,1743732643617,-578.3771345,0.00019264,2]
[357096122,1743732643627,-991.67378181,0.0002,2]
[357096124,1743732645744,-446.57246607,0.0002,2]
[357096126,1743732765471,727.27929102,0.00035113,30]
[357096127,1743732945126,-151.28,0.00016712,2]
[357096129,1743733165410,-37.09,0.00016712,2]
[357096130,1743733165437,-157.91,0.00017726,2]
[357096131,1743733203540,166.62,0.00013699,2]
[357096133,1743733650227,164.6,0.00013699,2]
[357096134,1743733653314,376.89246619,0.00023,15]
[357096135,1743733671319,156.65377755,0.00035111,30]
[357096136,1743733682698,-173.0307,0.00015,2]
[357096137,1743733713639,-203.13542126,0.00014999,2]
[357096138,1743733717166,151.19296658,0.00035111,30]
[357096139,1743733717199,1378.34307616,0.000149,2]
[357096157,1743733831939,-138.90648257,0.00014999,2]
[357096158,1743733831949,-300.0,0.00014999,2]
[357096159,1743733831959,-61391.46153182,0.00015,2]
[357096160,1743733831993,-35680.10886255,0.00015,2]
[357096161,1743733832048,-467.21,0.00015,2]
[357096212,1743733837747,-796.85749541,0.00015,2]
[357096213,1743733837906,-464.79510925,0.00015,2]
[357096215,1743733839812,-33184.99610604,0.00015,2]
[357096216,1743733839861,-355.06995839,0.00015,2]
[357096218,1743733841424,-845.06326688,0.00015,2]
[357096219,1743733841439,-6429.69782959,0.00015,2]
[357096220,1743733841452,-1564.34766012,0.00015,2]
[357096221,1743733841470,-2578.66958501,0.00015,2]
[357096222,1743733841482,-1867.34186428,0.00015,2]
[357096223,1743733841594,-46531.32665385,0.00015,2]
[357096224,1743733841605,-468.67334615,0.00015,2]
[357096225,1743733841620,-1005.32904095,0.00015,2]
[357096226,1743733841631,-840.0899425,0.00015,2]
[357096235,1743733843099,-9196.43880493,0.00015,2]
[357096236,1743733843307,-207679.44104999,0.00015,2]
[357096237,1743733843316,-1068.58,0.00017726,2]
[357096238,1743733843325,-222.39488985,0.00018,2]
[357096239,1743733843334,-500.0,0.00018438,2]
[357096240,1743733843343,-356.0,0.00018802,2]
[357096241,1743733843352,-161.13120947,0.00019169,2]
[357096242,1743733843361,-1474.8663,0.0001917,2]
[357096243,1743733843370,-23900.0,0.0001927,2]
[357096244,1743733843379,-184.09,0.00019383,2]
[357096245,1743733843388,-1000.0,0.00019435,2]
[357096246,1743733843397,-167.75,0.00019455,2]
[357096247,1743733843406,-200.0,0.000195,7]
[357096249,1743733843415,-156.51,0.00019587,2]
[357096250,1743733843424,-200.0,0.00019594,2]
[357096252,1743733843433,-500.0,0.000196,7]
[357096254,1743733843446,-1434.0,0.00019692,2]
[357096256,1743733843455,-1275.0,0.00019692,2]
[357096258,1743733843465,-790.0,0.00019692,2]
[357096260,1743733843473,-4096.0,0.00019692,2]
[357096261,1743733843482,-543.0,0.00019692,2]
[357096262,1743733843493,-1124.988,0.00019692,2]
[357096263,1743733843502,-1284.0,0.00019692,2]
[357096264,1743733843511,-151.0,0.00019692,2]
[357096265,1743733843522,-578.56,0.00019692,2]
[357096267,1743733843530,-3953.0,0.00019692,2]
[357096269,1743733843540,-800.0,0.000197,7]
[357096270,1743733843548,-159.07,0.00019737,2]
[357096271,1743733843557,-1100.0,0.000198,7]
[357096272,1743733843566,-161.13120946,0.000198,2]
[357096273,1743733843576,-251.65961973,0.00019819,2]
[357096274,1743733843584,-415.0745,0.000199,2]
[357096275,1743733843593,-445.4091,0.000199,2]
[357096276,1743733843602,-200.0074767,0.000199,2]
[357096277,1743733843611,-554.3972,0.000199,2]
[357096278,1743733843621,-526.18046732,0.000199,2]
[357096279,1743733843630,-1000.0,0.000199,2]
[357096280,1743733843639,-437.0734125,0.000199,2]
[357096281,1743733843648,-163.15579744,0.000199,2]
[357096282,1743733843657,-1300.0,0.000199,7]
[357096283,1743733843666,-614.64345907,0.00019973,2]
[357096284,1743733843676,-1226.49,0.0001999,2]
[357096285,1743733843685,-513.618,0.00019996,2]
[357096286,1743733843696,-5195.0546456,0.00019996,2]
[357096287,1743733843705,-3846.3802834,0.00019996,2]
[357096288,1743733843715,-870.8077465,0.00019996,2]
[357096289,1743733843726,-162808.94961076,0.0002,2]
[357096291,1743733845973,-559.0,0.00019692,2]
[357096293,1743733878596,500.0,0.000149,2]
[357096294,1743734079830,500.0,0.00035112,30]
[357096295,1743734097244,507.14103611,0.00035112,30]
[357096297,1743734288392,552.704466,7.945e-05,2]
[357096298,1743734392100,3518.65362404,0.00035108,30]
[357096299,1743734565571,-150.99,0.00018,2]
[357096300,1743734647725,151.36,0.00013699,2]
[357096302,1743734875561,853.40744787,0.00035108,120]
[357096316,1743735032059,-151.36,0.00017613,2]
[357096317,1743735032069,-208.21056497,0.00018721,2]
[357096318,1743735032079,-90.46650803,0.00018727,2]
[357096319,1743735032166,-1364.74899497,0.00018727,2]
[357096320,1743735032175,-304.5650539,0.00018821,2]
[357096321,1743735032185,-569.4449822,0.00018921,2]
[357096379,1743735040327,-534.3950178,0.00018921,2]
[357096380,1743735040338,-210.49227335,0.00019251,2]
[357096390,1743735046160,-94.07278053,0.00019251,2]
[357096391,1743735046169,-1000.0,0.00019351,2]
[357096392,1743735046179,-195.5458989,0.00019399,2]
[357096393,1743735046189,-1000.0,0.00019593,2]
[357096394,1743735046198,-153.0,0.00019691,2]
[357096395,1743735046207,-300.0,0.00019691,2]
[357096396,1743735046216,-903.341,0.00019692,2]
[357096397,1743735046225,-576.688,0.00019692,2]
[357096398,1743735046235,-1366.0,0.00019692,2]
[357096399,1743735046244,-1429.061,0.00019692,2]
[357096400,1743735046253,-310.404,0.00019692,2]
[357096401,1743735046263,-543.0,0.00019692,2]
[357096402,1743735046272,-465.486,0.00019692,2]
[357096403,1743735046281,-151.0,0.00019692,2]
[357096404,1743735046290,-3953.0,0.00019692,2]
[357096405,1743735046299,-851.0,0.00019692,2]
[357096406,1743735046309,-250.0,0.00019692,2]
[357096407,1743735046319,-150.99,0.00019899,2]
[357096408,1743735046328,-171.43498002,0.000199,2]
[357096409,1743735046337,-151.2702,0.000199,2]
[357096410,1743735046347,-866.7432495,0.000199,2]
[357096411,1743735046356,-473.56242057,0.000199,2]
[357096412,1743735046365,-163.15579744,0.000199,2]
[357096413,1743735046374,-188.88634276,0.000199,2]
[357096414,1743735046383,-4735.68954487,0.000199,2]
[357096415,1743735046392,-208.21056497,0.000199,2]
[357096416,1743735046402,-393.36607125,0.000199,2]
[357096417,1743735046411,-391.93240442,0.00019948,2]
[357096418,1743735046420,-166.66,0.00019976,2]
[357096420,1743735046429,-211.90623802,0.00019996,2]
[357096422,1743735046438,-613.195,0.00019996,2]
[357096423,1743735046448,-1363.0947496,0.00019996,2]
[357096424,1743735046457,-4847.5096978,0.00019996,2]
[357096425,1743735046466,-1000.0,0.00019999,2]
[357096426,1743735046475,-6360.78019045,0.0002,2]
[357096428,1743735046491,-30606.10184288,0.0002,2]
[357096430,1743735776778,151.36,0.00013699,2]
[357096431,1743735840549,-197.1645,0.00018275,2]
[357096437,1743736232203,-636.10140926,0.00018275,2]
[357096438,1743736232256,-215.37409074,0.00018275,2]
[357096439,1743736232266,-259.9523,0.00018793,2]
[357096440,1743736232275,-208.21056496,0.00019159,2]
[357096441,1743736232285,-269.4018,0.00019162,2]
[357096442,1743736232295,-151.36,0.00019178,2]
[357096443,1743736232304,-165.68,0.00019255,2]
[357096444,1743736232314,-1000.0,0.00019259,2]
[357096445,1743736232323,-195.5458989,0.00019399,2]
[357096446,1743736232335,-250.0,0.00019492,2]
[357096447,1743736232344,-151.0,0.0001952,2]
[357096448,1743736232354,-3953.0,0.0001952,2]
[357096449,1743736232363,-851.0,0.0001952,2]
[357096450,1743736232372,-300.0,0.00019569,2]
[357096451,1743736232381,-23900.0,0.0001957,2]
[357096452,1743736232390,-222.24659024,0.00019629,2]
[357096453,1743736232399,-150.0,0.00019692,2]
[357096454,1743736232409,-1366.0,0.00019692,2]
[357096455,1743736232418,-543.0,0.00019692,2]
[357096456,1743736232427,-222.24659025,0.00019864,2]
[357096457,1743736232436,-233.94667111,0.00019899,2]
[357096458,1743736232445,-500.0,0.000199,2]
[357096459,1743736232454,-169.04466221,0.000199,2]
[357096460,1743736232463,-21294.7569,0.000199,2]
[357096461,1743736232472,-224.0343,0.000199,2]
[357096462,1743736232482,-426.20617854,0.000199,2]
[357096463,1743736232491,-354.02946417,0.000199,2]
[357096464,1743736232500,-722.28604125,0.000199,2]
[357096465,1743736232509,-6083.6177,0.000199,2]
[357096466,1743736232518,-163.15579744,0.000199,2]
[357096467,1743736232528,-180.21002707,0.000199,2]
[357096468,1743736232537,-222.08461371,0.000199,2]
[357096469,1743736232547,-3157.12636324,0.000199,2]
[357096470,1743736232556,-490.556,0.00019957,2]
[357096471,1743736232565,-157.72,0.0001999,2]
[357096472,1743736232575,-757.1991334,0.00019996,2]
[357096474,1743736232584,-1180.8291852,0.00019996,2]
[357096476,1743736232594,-81118.77305025,0.0002,2]
[357096479,1743736232610,-1085.9649538,0.0002,2]
[357096481,1743736232634,-400.0,0.0002,2]
[357096484,1743736232650,-272.80967872,0.0002,2]
[357096570,1743736238117,-3106.07948052,0.0002,2]
[357096571,1743736238131,-9247.16874785,0.0002,2]
[357096572,1743736238146,-1463.88406368,0.0002,2]
[357096573,1743736238173,-4891.75415988,0.0002,2]
[357096574,1743736238185,-1421.91293233,0.0002,2]
[357096575,1743736238229,-452.64,0.0002,2]
[357096576,1743736238241,-2446.27148904,0.0002,2]
[357096577,1743736238283,-894.89400002,0.0002,2]
[357096578,1743736238295,-93817.02004423,0.0002,2]
[357096592,1743736240174,-496.29121978,0.0002,2]
[357096593,1743736240188,-288.07999384,0.0002,2]
[357096594,1743736240199,-516.86075677,0.0002,2]
[357096595,1743736240213,-487.89012847,0.0002,2]
[357096596,1743736240291,-26531.11234661,0.0002,2]
[357096597,1743736240335,-1285.09837437,0.0002,2]
[357096598,1743736240388,-723.21934277,0.0002,2]
[357096599,1743736240551,-1414.5329418,0.0002,2]
[357096600,1743736240566,-27817.57147317,0.0002,2]
[357096601,1743736240578,-889.375035,0.0002,2]
[357096602,1743736240590,-22353.79882893,0.0002,2]
[357096603,1743736240601,-448.67857483,0.0002,2]
[357096604,1743736240613,-3094.86716903,0.0002,2]
[357096605,1743736240625,-2500.0,0.0002,2]
[357096615,1743736246242,-3675.41195589,0.0002,2]
[357096616,1743736246254,-525.0000125,0.0002,2]
[357096617,1743736246348,-1834.98942044,0.0002,2]
[357096618,1743736246403,-1680.82961111,0.0002,2]
[357096619,1743736246458,-467.80633459,0.0002,2]
[357096625,1743736772200,153.9,0.00013699,2]
[357096626,1743736955796,751.46779795,0.0003,30]
[357096628,1743737111481,-150.0,0.000154,2]
[357096629,1743737128827,237.7554854,0.00011,2]
[357096630,1743737137344,2072.18114019,8e-05,2]
[357096635,1743737254307,1096.24015209,0.00035112,120]
[357096647,1743737432256,-54.91571972,0.000154,2]
[357096649,1743737432266,-996.2,0.00018555,2]
[357096651,1743737432275,-150.0,0.00019593,2]
[357096653,1743737432284,-186.318,0.00019692,2]
[357096655,1743737432294,-3953.0,0.00019692,2]
[357096656,1743737432303,-151.0,0.00019692,2]
[357096657,1743737432313,-92.00962318,0.00019692,2]
[357096658,1743737432417,-758.99037682,0.00019692,2]
[357096659,1743737432427,-173.07037005,0.000199,2]
[357096660,1743737432436,-601.90503435,0.000199,2]
[357096661,1743737432446,-3.50964439,0.000199,2]
[357096662,1743737432463,-264.98575561,0.000199,2]
[357096663,1743737432481,-384.62582641,0.000199,2]
[357096664,1743737432492,-2146.2253,0.000199,2]
[357096665,1743737432510,-3167.32759232,0.000199,2]
[357096666,1743737432521,-213.59143112,0.000199,2]
[357096667,1743737432532,-508.98020354,0.00019973,2]
[357096668,1743737432542,-4977.90272478,0.0001999,2]
[357096669,1743737432551,-1368.2143349,0.00019996,2]
[357096670,1743737432561,-1806.7794326,0.00019996,2]
[357096671,1743737432570,-501.945,0.00019999,2]
[357096672,1743737432580,-500.0,0.00019999,2]
[357096673,1743737432590,-347.03422254,0.00019999,2]
[357096674,1743737432599,-20179.56992092,0.0002,2]
[357096675,1743737432612,-4170.12715053,0.0002,2]
[357096676,1743737432623,-4193.60662579,0.0002,2]
[357096677,1743737432635,-2609.49592439,0.0002,2]
[357096678,1743737432647,-10402.38722552,0.0002,2]
[357096679,1743737432659,-155059.92332526,0.0002,2]
[357096680,1743737432670,-1285.81203053,0.0002,2]
[357096681,1743737432686,-3122.2533,0.0002,2]
[357096774,1743737438355,-370.682,0.00019692,2]
[357096775,1743737438365,-38130.00193885,0.0002,2]
[357096778,1743737440439,-80273.45250442,0.0002,2]
[357096779,1743737440451,-415.405,0.0002,2]
[357096780,1743737440636,-410795.61507595,0.0002,2]
[357096783,1743737443450,-103578.62474223,0.0002,2]
[357096794,1743737444312,-967.66722004,0.0002,2]
[357096795,1743737444327,-193999.72885722,0.0002,2]
[357096796,1743737444338,-3186.97166963,0.0002,2]
[357096797,1743737444354,-278742.91490268,0.0002,2]
[357096799,1743737446459,-31787.99976932,0.0002,2]
[357096800,1743737446474,-13400.22669507,0.0002,2]
[357096801,1743737446571,-259.43931699,0.0002,2]
[357096802,1743737446583,-24534.26333434,0.0002,2]
[357096803,1743737446740,-4604.30281884,0.0002,2]
[357096808,1743737775719,-151.43559359,0.00018189,2]
[357096809,1743738022751,153.9,0.00013699,2]
[357096810,1743738171308,10000.0,0.00035104,30]
[357096813,1743738481735,-350.0,0.00020591,12]
[357096814,1743738524183,-150.0,0.00020013,7]
[357096815,1743738524208,-200.0,0.00020145,7]
[357096819,1743738566690,-151.43559359,0.00018189,2]
[357096827,1743738619136,-157.91,0.00015441,2]
[357096832,1743738631510,-18.63,0.00015441,2]
[357096833,1743738631520,-595.00950816,0.00018189,2]
[357096834,1743738631564,-56.01930466,0.00018189,2]
[357096835,1743738631574,-319.389429,0.00019257,2]
[357096836,1743738631584,-150.0,0.00019355,7]
[357096837,1743738631594,-435.4312853,0.00019615,2]
[357096838,1743738631604,-151.43559359,0.000198,2]
[357096839,1743738631613,-300.0,0.00019899,2]
[357096840,1743738631623,-506.61218489,0.00019899,2]
[357096841,1743738631633,-3123.9028,0.000199,2]
[357096842,1743738631642,-16239.9592,0.000199,2]
[357096843,1743738631652,-160.3384,0.000199,2]
[357096844,1743738631661,-173.33390565,0.000199,2]
[357096845,1743738631671,-364.22342199,0.000199,2]
[357096846,1743738631680,-2547.61151623,0.000199,2]
[357096847,1743738631692,-2111.55172822,0.000199,2]
[357096848,1743738631702,-500.0,0.00019929,2]
[357096849,1743738631712,-500.0,0.00019929,2]
[357096850,1743738631721,-500.0,0.00019929,2]
[357096851,1743738631731,-365.88648514,0.00019929,2]
[357096852,1743738631740,-165.68,0.00019954,2]
[357096853,1743738631750,-457.89740182,0.00019973,2]
[357096854,1743738631759,-501.39652048,0.00019973,2]
[357096855,1743738631769,-500.0,0.00019973,2]
[357096856,1743738631778,-435.4312853,0.00019987,2]
[357096857,1743738631788,-11586.4496177,0.00019999,2]
[357096858,1743738631797,-589.0,0.0002,2]
[357096859,1743738631808,-59958.45465354,0.0002,2]
[357096860,1743738631820,-503.48436925,0.0002,2]
[357096861,1743738631832,-6043.67082095,0.0002,2]
[357096862,1743738631853,-67947.71447034,0.0002,2]
[357096863,1743738631863,-8480.38511268,0.0002,2]
[357097382,1743738637417,-531.0,0.0002,2]
[357097383,1743738637427,-1305.61827056,0.0002,2]
[357097385,1743738637525,-428.65524289,0.0002,2]
[357097386,1743738637582,-128.90354235,0.0002,2]
[357097387,1743738637593,-701.58645765,0.0002,2]
[357097388,1743738637605,-212061.26847813,0.0002,2]
[357097389,1743738637638,-2581.43129783,0.0002,2]
[357097390,1743738637696,-10233.470495,0.0002,2]
[357097391,1743738637708,-4663.47623923,0.0002,2]